bitfinex-derivatives/quotes_ETHF0:USTF0_20250130
["timestamp","ask_amount","ask_price","bid_price","bid_amount"]
[1738244227174,7.0044509,3258.9,3258.4,0.61387]
[1738244227376,3.7966509,3258.9,3258.4,0.61387]
[1738244227572,3.1828509,3258.9,3258.5,0.61385]
[1738244227983,3.1828509,3258.9,3258.2,3.2078]
[1738244228474,3.1828509,3258.9,3258.5,0.61386]
[1738244228866,0.00460186,3259.0,3258.7,0.61382]
[1738244229373,3.1828509,3258.8,3258.2,3.2078]
[1738244229567,3.2078,3258.9,3258.2,3.2078]
[1738244229568,3.1828509,3258.4,3258.2,3.2078]
[1738244230173,1.163,3258.3,3257.2,4.7775]
[1738244230475,3.21662,3258.3,3257.7,0.614]
[1738244231375,2.6027,3258.3,3257.6,3.2078]
[1738244231675,0.61393,3258.2,3257.6,3.82183]
[1738244232177,3.7968109,3258.0,3257.4,0.61407]
[1738244232476,6.3906509,3258.0,3257.2,4.7775]
[1738244232973,1.4397,3258.3,3257.9,0.61397]
[1738244233174,3.1828509,3258.4,3257.6,3.2078]
[1738244233373,3.1828509,3258.4,3258.1,0.61393]
[1738244233675,3.1828509,3258.4,3257.6,3.2078]
[1738244234175,3.1828509,3258.4,3258.1,0.61393]
[1738244234379,3.1828509,3258.8,3258.0,3.2078]
[1738244234970,3.1828509,3258.8,3258.3,0.61389]
[1738244235175,3.1828509,3258.8,3258.4,0.61387]
[1738244235570,3.1828509,3258.8,3258.0,3.2078]
[1738244235772,3.1828509,3258.4,3258.0,3.2078]
[1738244235977,3.7967509,3258.4,3258.0,3.2078]
[1738244236178,3.1828509,3258.4,3257.6,3.2078]
[1738244236376,3.1828509,3258.0,3257.6,3.2078]
[1738244236679,3.7967409,3258.4,3257.8,0.61398]
[1738244237067,3.7967409,3258.4,3257.6,3.2078]
[1738244237068,3.1828509,3258.4,3257.6,3.2078]
[1738244237679,3.1828509,3258.4,3258.1,0.61393]
[1738244237994,3.1828509,3258.4,3258.2,0.61392]
[1738244238281,3.2078,3258.6,3258.0,3.2078]
[1738244238471,3.2078,3258.6,3258.3,0.6139]
[1738244238778,3.2078,3258.6,3258.1,0.61393]
[1738244238968,3.1828509,3258.4,3258.0,3.2078]
[1738244239171,0.61391,3258.3,3257.7,0.61401]
[1738244239380,3.1828509,3258.4,3257.6,3.2078]
[1738244239570,0.61394,3258.2,3257.6,3.2078]
[1738244239766,3.1828509,3258.4,3257.6,3.2078]
[1738244240071,3.1828509,3258.0,3257.6,3.2078]
[1738244240277,3.7968109,3258.0,3257.6,3.2078]
[1738244241074,0.61399,3257.9,3257.6,3.2078]
[1738244241679,7.0046209,3258.0,3257.6,3.2078]
[1738244242076,6.3906509,3258.0,3257.6,3.2078]
[1738244243274,0.61398,3257.9,3257.6,3.2078]
[1738244243579,6.3906509,3258.0,3257.6,3.2078]
[1738244243781,0.614,3257.8,3257.6,3.2078]
[1738244243976,6.3906509,3258.0,3257.6,3.2078]
[1738244244775,7.0046209,3258.0,3257.6,3.2078]
[1738244244980,6.3906509,3258.0,3257.6,3.2078]
[1738244245186,7.0046109,3258.0,3257.6,3.2078]
[1738244245686,6.3906509,3258.0,3257.6,3.2078]
[1738244245889,0.61399,3257.9,3257.6,3.2078]
[1738244246091,0.614,3257.8,3257.6,3.2078]
[1738244246279,0.61398,3257.9,3257.6,3.2078]
[1738244246581,0.614,3257.8,3257.6,3.2078]
[1738244246778,0.61398,3257.9,3257.6,3.2078]
[1738244246978,0.614,3257.8,3257.6,3.2078]
[1738244247488,0.61399,3257.9,3257.6,3.2078]
[1738244248084,7.0046209,3258.0,3257.6,3.2078]
[1738244248684,6.3906509,3258.0,3257.6,3.2078]
[1738244248884,0.61398,3257.9,3257.6,3.2078]
[1738244249080,7.0046209,3258.0,3257.6,3.2078]
[1738244249590,0.61398,3257.9,3257.6,3.2078]
[1738244250379,6.3906509,3258.0,3257.6,3.2078]
[1738244250790,0.61398,3257.9,3257.6,3.2078]
[1738244250982,0.61399,3257.9,3257.6,3.2078]
[1738244251992,1.136,3257.8,3257.6,3.2078]
[1738244252285,0.61402,3257.7,3257.0,3.2078]
[1738244252483,3.7969109,3257.5,3257.0,3.82195]
[1738244252688,0.61408,3257.4,3256.9,0.61415]
[1738244252880,3.1828509,3257.5,3257.1,0.61412]
[1738244253791,3.7969109,3257.5,3256.7,1.4502]
[1738244253994,0.61407,3257.4,3257.0,0.61414]
[1738244254190,0.61407,3257.4,3256.6,6.18784]
[1738244254191,0.61415,3257.0,3256.6,3.2078]
[1738244254493,3.7969909,3257.1,3256.7,0.61419]
[1738244254795,0.61416,3257.0,3256.6,3.82201]
[1738244255285,3.18745276,3257.1,3256.6,3.2078]
[1738244255493,0.00460186,3257.1,3257.0,0.61415]
[1738244256294,3.18745276,3257.1,3256.6,3.2078]
[1738244256796,0.61417,3256.9,3256.6,3.2078]
[1738244257195,3.1828509,3256.7,3256.6,3.2078]
[1738244257397,3.7970609,3256.7,3256.6,3.2078]
[1738244257899,3.1828509,3256.7,3256.6,3.2078]
[1738244258300,0.61425,3256.5,3256.2,3.2078]
[1738244258492,3.1828509,3256.3,3256.0,2.19673]
[1738244258796,3.1828509,3256.3,3255.6,3.2078]
[1738244259105,3.1828509,3255.8,3255.6,3.2078]
[1738244259305,3.7972309,3255.8,3255.6,3.2078]
[1738244259790,0.61439,3255.7,3255.6,3.2078]
[1738244260186,8.2078,3255.7,3254.3,3.2078]
[1738244260391,3.1828509,3254.8,3254.3,3.2078]
[1738244260591,3.1828509,3254.8,3254.5,0.61461]
[1738244260797,0.00460186,3254.9,3254.8,0.61456]
[1738244262696,3.1828509,3256.4,3254.8,5.0]
[1738244263002,3.1828509,3256.4,3256.1,3.2078]
[1738244263003,0.61428,3256.4,3256.1,3.2078]
[1738244263302,3.7971609,3256.2,3255.8,0.61436]
[1738244263502,3.1828509,3256.2,3255.7,3.2078]
[1738244263702,3.7972309,3255.8,3255.2,3.2078]
[1738244263905,3.1828509,3256.0,3255.2,3.2078]
[1738244263906,3.1828509,3255.3,3255.2,3.2078]
[1738244264101,3.7973209,3255.3,3255.2,3.2078]
[1738244265204,0.61449,3255.2,3254.8,3.2078]
[1738244265400,3.1828509,3254.9,3254.8,3.2078]
[1738244265795,3.1828509,3254.9,3254.8,3.82236]
[1738244267801,3.1828509,3255.5,3254.8,3.2078]
[1738244268015,3.1828509,3255.0,3254.9,1.555]
[1738244270299,3.1828509,3255.0,3254.7,3.2078]
[1738244270603,2.63443952,3254.9,3254.8,0.61456]
[1738244272706,2.63443952,3254.9,3253.7,1.5198]
[1738244272707,2.63443952,3254.9,3254.5,3.2078]
[1738244272912,2.63443952,3254.6,3254.5,3.82241]
[1738244278108,0.004609,3255.0,3254.8,0.61456]
[1738244278109,2.63443952,3254.9,3254.8,0.61456]
[1738244279313,0.004609,3255.0,3254.9,0.61455]
[1738244279506,0.004609,3255.0,3254.9,3.82235]
[1738244279912,0.004609,3255.0,3254.9,3.2078]
[1738244280801,0.004609,3255.0,3254.5,3.2078]
[1738244280997,2.63443952,3254.8,3254.7,0.61458]
[1738244281306,2.63443952,3254.8,3254.7,3.82238]
[1738244281603,2.63443952,3254.8,3254.7,3.2078]
[1738244281809,2.63443952,3254.8,3254.7,3.82238]
[1738244282001,0.004609,3255.0,3254.9,0.61455]
[1738244282204,2.63443952,3256.0,3254.9,5.0]
[1738244282401,2.63443952,3256.0,3255.7,3.2078]
[1738244282601,2.63443952,3256.0,3255.9,0.61436]
[1738244282911,2.63443952,3256.3,3255.7,3.2078]
[1738244283102,1.575,3256.6,3256.2,3.2078]
[1738244283305,0.61428,3256.3,3256.2,3.2078]
[1738244283711,0.61428,3256.3,3255.4,0.004609]
[1738244283712,3.07136,3256.4,3255.6,3.2078]
[1738244284005,2.63443952,3255.7,3255.6,3.2078]
[1738244284213,2.63443952,3255.7,3255.6,3.82221]
[1738244285313,2.63443952,3256.0,3255.6,3.2078]
[1738244285504,2.63443952,3256.0,3255.8,0.61436]
[1738244285704,2.63443952,3256.0,3255.6,3.2078]
[1738244286009,3.24882952,3255.7,3255.6,3.2078]
[1738244286208,2.63443952,3255.7,3255.4,0.004609]
[1738244286412,0.61443,3255.5,3255.4,0.004609]
[1738244287508,1.4509,3255.6,3255.4,0.004609]
[1738244287706,0.61443,3255.5,3255.4,0.004609]
[1738244288108,2.06532,3255.6,3255.4,0.004609]
[1738244288608,1.4509,3255.6,3255.4,0.004609]
[1738244288811,1.4509,3255.6,3255.2,0.826869]
[1738244289012,2.63443952,3255.4,3255.2,0.826869]
[1738244289308,3.24888952,3255.4,3255.2,0.826869]
[1738244289507,0.61447,3255.3,3255.2,0.826869]
[1738244289711,2.63443952,3255.4,3254.7,3.2078]
[1738244289902,2.63443952,3255.2,3254.7,3.2078]
[1738244290411,2.63443952,3254.9,3254.7,3.2078]
[1738244290612,3.24898952,3254.9,3254.7,3.2078]
[1738244290812,2.63443952,3254.9,3254.6,1.538]
[1738244291006,2.63443952,3254.9,3254.6,2.15259]
[1738244291007,3.24898952,3254.9,3254.6,2.15259]
[1738244291308,2.63443952,3254.9,3254.6,2.15259]
[1738244291508,2.63443952,3254.9,3254.6,1.538]
[1738244291707,2.63443952,3254.9,3254.7,0.61458]
[1738244291908,3.24898952,3254.9,3254.6,2.15259]
[1738244292107,2.63443952,3254.9,3254.7,0.61457]
[1738244292312,2.63443952,3254.9,3254.6,0.61459]
[1738244292313,3.24898952,3254.9,3254.6,0.61459]
[1738244292514,2.63443952,3254.9,3254.3,3.2078]
[1738244292908,2.63904852,3254.9,3254.3,3.2078]
[1738244293105,2.63904852,3254.9,3254.7,0.61457]
[1738244293305,2.63904852,3254.9,3254.8,0.61456]
[1738244293507,0.004609,3254.9,3254.8,0.61456]
[1738244293914,2.63443952,3255.8,3255.7,0.61439]
[1738244295013,2.63904852,3256.1,3256.0,0.61434]
[1738244295312,2.63904852,3256.1,3255.9,0.61435]
[1738244295509,2.63904852,3256.1,3255.4,0.004609]
[1738244295709,2.63443952,3255.8,3255.7,0.61439]
[1738244295910,2.63443952,3255.8,3255.4,0.004609]
[1738244296116,2.63443952,3255.8,3255.5,0.61442]
[1738244296411,3.24881952,3255.8,3255.4,0.004609]
[1738244296714,3.24882952,3255.8,3255.5,0.61443]
[1738244298319,0.6144,3255.7,3255.5,0.61443]
[1738244298511,3.24881952,3255.8,3255.4,0.004609]
[1738244298917,2.63443952,3255.8,3255.4,0.004609]
[1738244299114,3.24886952,3255.5,3255.4,0.004609]
[1738244301420,2.63443952,3255.5,3255.4,0.004609]
[1738244301623,2.63443952,3255.8,3255.4,0.004609]
[1738244301824,3.24882952,3255.8,3255.5,0.61442]
[1738244302521,2.63443952,3255.8,3255.5,0.61442]
[1738244302820,2.63443952,3255.8,3255.4,0.004609]
[1738244303022,2.63443952,3255.8,3255.7,0.61439]
[1738244303323,2.63443952,3255.8,3255.4,0.004609]
[1738244303623,2.63443952,3255.8,3255.7,0.61439]
[1738244304417,2.63904852,3256.1,3255.4,3.081209]
[1738244304624,2.63904852,3256.1,3256.0,0.61434]
[1738244304925,0.004609,3256.1,3256.0,0.61434]
[1738244306523,0.004609,3256.1,3256.0,5.61434]
[1738244306716,2.63443952,3257.0,3256.9,0.61417]
[1738244307226,5.84223952,3257.0,3256.3,3.2078]
[1738244307524,3.24869952,3256.4,3256.3,3.2078]
[1738244308321,3.24869952,3256.4,3255.4,3.081229]
[1738244308322,2.63443952,3256.4,3255.8,3.2078]
[1738244308529,2.63443952,3255.9,3255.4,3.212409]
[1738244308720,3.24886952,3255.5,3255.4,0.004609]
[1738244308921,2.63443952,3255.8,3255.4,0.004609]
[1738244309131,5.84223952,3256.1,3255.4,0.004609]
[1738244309428,3.24875952,3256.1,3255.9,0.61435]
[1738244309625,2.63443952,3256.1,3255.9,0.61435]
[1738244309829,2.63443952,3256.1,3256.0,0.61434]
[1738244310330,1.5589,3256.3,3256.2,0.6143]
[1738244311130,2.17319,3256.3,3255.9,0.61435]
[1738244311324,1.5589,3256.3,3255.5,4.7816]
[1738244311530,1.5589,3256.3,3255.6,0.6144]
[1738244311531,3.80440451,3256.0,3255.6,0.6144]
[1738244311729,3.19005451,3256.0,3255.7,0.61438]
[1738244312032,3.19005451,3256.0,3255.5,3.2078]
[1738244312230,0.61443,3255.5,3255.4,0.004609]
[1738244312932,2.08933,3255.5,3255.4,0.004609]
[1738244313535,3.19005451,3255.6,3255.4,0.619049]
[1738244314228,3.19005451,3255.6,3255.4,0.004609]
[1738244314733,3.80448451,3255.6,3255.4,0.004609]
[1738244315125,3.19005451,3255.6,3255.4,0.004609]
[1738244315426,3.19005451,3255.6,3255.5,0.61443]
[1738244316628,1.4749,3255.9,3255.8,0.61438]
[1738244316829,6.39785451,3256.0,3255.9,0.61436]
[1738244317030,6.39785451,3256.0,3255.5,1.53609]
[1738244317231,6.39785451,3256.0,3255.8,0.61436]
[1738244317433,9.58790902,3256.0,3255.4,0.004609]
[1738244317626,3.80448451,3255.5,3255.4,0.004609]
[1738244318932,3.19005451,3255.5,3254.6,3.2078]
[1738244319128,3.80459451,3255.0,3254.6,3.2078]
[1738244319330,3.19005451,3255.0,3254.7,0.61458]
[1738244319725,3.19005451,3255.0,3254.6,3.2078]
[1738244319930,3.19005451,3255.0,3254.2,1.53665]
[1738244319931,0.61459,3254.7,3254.3,0.61465]
[1738244320225,0.61459,3254.7,3254.5,0.004609]
[1738244320430,0.619189,3254.8,3254.5,0.004609]
[1738244320828,0.61459,3254.7,3254.5,0.004609]
[1738244321037,0.619189,3254.8,3254.5,0.004609]
[1738244321437,0.61459,3254.7,3254.5,0.004609]
[1738244321628,3.19005451,3254.6,3254.5,0.004609]
[1738244325843,3.80465451,3254.6,3254.5,0.004609]
[1738244328242,3.80465451,3254.6,3253.4,3.2078]
[1738244328243,0.61479,3253.7,3253.4,3.2078]
[1738244328440,3.19005451,3253.5,3253.2,0.61485]
[1738244328639,3.19005451,3253.5,3252.9,0.38427453]
[1738244328839,3.19005451,3253.5,3253.4,0.61483]
[1738244331540,3.19005451,3253.5,3253.2,3.2078]
[1738244331741,3.80488451,3253.5,3253.3,0.61484]
[1738244332043,3.80488451,3253.5,3253.2,3.2078]
[1738244332044,0.61484,3253.4,3253.2,3.82266]
[1738244332843,3.19005451,3253.5,3253.2,3.2078]
[1738244333042,0.61484,3253.4,3253.3,0.002857]
[1738244333441,3.19005451,3253.5,3252.9,0.38427453]
[1738244333641,3.80495451,3253.0,3252.9,0.38427453]
[1738244334236,6.26385451,3253.0,3252.3,3.2078]
[1738244334440,3.19005451,3252.4,3252.2,0.61505]
[1738244334635,3.19005451,3252.4,3252.1,0.61506]
[1738244334844,3.19005451,3252.2,3251.8,3.2078]
[1738244335046,3.19005451,3252.2,3251.7,1.5867]
[1738244335047,3.19005451,3252.2,3252.0,0.61508]
[1738244335350,3.19005451,3252.2,3251.7,1.5867]
[1738244335541,0.61516,3251.7,3251.3,3.2078]
[1738244335847,3.19005451,3251.4,3251.3,3.2078]
[1738244336343,3.19005451,3251.4,3250.8,1.5867]
[1738244336552,3.19005451,3250.9,3250.7,0.61533]
[1738244336750,3.19005451,3250.9,3250.8,0.61532]
[1738244337241,3.19005451,3251.3,3250.7,3.2078]
[1738244337441,3.19005451,3251.3,3251.2,0.61524]
[1738244337747,0.004609,3251.3,3251.2,0.61524]
[1738244337938,0.004609,3251.3,3251.2,2.17174]
[1738244338134,3.19005451,3251.8,3251.2,2.17174]
[1738244338135,3.19005451,3251.8,3251.2,6.5565]
[1738244338340,3.19005451,3252.2,3252.1,0.61507]
[1738244338943,3.2078,3252.8,3252.5,0.615]
[1738244338944,3.19005451,3252.6,3252.5,0.615]
[1738244339643,0.004609,3252.9,3252.8,0.61494]
[1738244340249,0.004609,3252.9,3252.4,3.2078]
[1738244340453,3.19005451,3252.5,3252.4,3.2078]
[1738244340841,3.19005451,3252.5,3252.2,0.619659]
[1738244340842,0.61502,3252.4,3252.2,0.004609]
[1738244341042,3.80506451,3252.5,3252.2,0.619659]
[1738244341238,3.19005451,3252.5,3252.2,0.004609]
[1738244341443,0.61504,3252.3,3252.2,0.004609]
[1738244341647,0.61503,3252.4,3252.2,0.004609]
[1738244341845,0.61502,3252.4,3252.2,0.004609]
[1738244342044,0.61504,3252.3,3252.2,0.004609]
[1738244344149,0.61504,3252.4,3252.2,0.004609]
[1738244344352,3.19005451,3252.5,3252.2,0.004609]
[1738244344553,4.30605451,3252.5,3252.2,0.004609]
[1738244344851,4.92106451,3252.5,3252.0,0.61508]
[1738244345057,3.19005451,3252.1,3252.0,0.61508]
[1738244345245,3.19005451,3252.1,3251.5,4.74577]
[1738244345646,3.19005451,3252.1,3252.0,0.61509]
[1738244346045,3.19005451,3252.5,3251.9,3.2078]
[1738244346246,3.19005451,3252.5,3252.4,0.61502]
[1738244346442,3.19466351,3252.9,3252.4,3.2078]
[1738244346653,3.19466351,3252.9,3252.8,0.61494]
[1738244346855,0.004609,3252.9,3252.8,0.61494]
[1738244348556,0.004609,3252.9,3252.8,3.82274]
[1738244350150,0.004609,3252.9,3252.3,1.53758]
[1738244350151,3.19466351,3252.9,3252.3,3.2078]
[1738244350352,3.19005451,3252.4,3252.3,3.82284]
[1738244350751,3.19005451,3252.4,3252.3,3.2078]
[1738244350950,3.80507451,3252.4,3252.3,3.2078]
[1738244351457,0.61507,3252.2,3251.9,3.2078]
[1738244351755,3.19005451,3252.4,3251.9,3.2078]
[1738244351955,3.19005451,3252.0,3251.9,3.2078]
[1738244352260,0.61514,3251.8,3251.5,3.2078]
[1738244352456,3.19005451,3252.0,3251.5,3.2078]
[1738244352457,3.19005451,3251.6,3251.5,3.2078]
[1738244352650,0.6152,3251.5,3251.1,0.61525]
[1738244352850,3.19005451,3251.6,3251.0,3.2078]
[1738244353149,3.19005451,3251.2,3251.0,3.2078]
[1738244353348,3.19005451,3251.2,3250.6,3.03606]
[1738244353349,3.19005451,3251.2,3250.6,4.7055]
[1738244353556,3.19005451,3251.2,3250.9,0.61529]
[1738244353857,3.80991351,3251.2,3250.8,0.6153]
[1738244354052,3.19466351,3251.2,3250.9,0.61529]
[1738244354261,3.80991351,3251.2,3250.9,0.61529]
[1738244354558,0.61528,3251.0,3250.8,0.61531]
[1738244354859,0.61527,3251.1,3250.8,0.61531]
[1738244355047,3.2078,3251.1,3250.6,3.2078]
[1738244355246,3.2078,3251.1,3249.2,3.19005451]
[1738244355247,0.61538,3250.5,3250.2,0.61542]
[1738244355651,3.19005451,3250.7,3250.0,3.2078]
[1738244355861,3.19005451,3250.2,3250.0,3.2078]
[1738244356154,3.19005451,3250.2,3250.1,0.61545]
[1738244356654,3.19005451,3250.2,3250.0,3.82326]
[1738244356855,3.19005451,3250.2,3250.1,0.61545]
[1738244357051,3.19005451,3250.2,3250.0,3.2078]
[1738244357249,3.19005451,3250.2,3247.9,0.38489307]
[1738244357250,3.19005451,3250.2,3250.1,0.61545]
[1738244357653,3.80550451,3250.2,3249.8,0.61551]
[1738244357852,3.80550451,3250.2,3249.7,1.4998]
[1738244357853,3.19005451,3250.2,3249.7,1.4998]
[1738244358149,3.2078,3250.6,3250.1,0.61545]
[1738244358150,7.01321451,3250.6,3250.1,0.61545]
[1738244358353,6.39785451,3250.6,3250.0,3.2078]
[1738244358862,6.39785451,3250.6,3250.2,0.61542]
[1738244359065,7.01322451,3250.6,3250.0,3.2078]
[1738244359264,6.39785451,3250.6,3250.3,0.6154]
[1738244359666,6.39785451,3250.6,3250.0,3.2078]
[1738244359968,6.39785451,3250.6,3250.4,0.61539]
[1738244360157,6.39785451,3250.6,3250.0,3.2078]
[1738244360465,6.39785451,3250.6,3250.4,0.61539]
[1738244360758,3.19005451,3251.0,3250.5,3.2078]
[1738244360963,0.004609,3251.2,3250.5,3.2078]
[1738244361163,0.004609,3251.2,3250.6,3.07]
[1738244361361,0.004609,3251.2,3251.1,0.61526]
[1738244364562,0.004609,3251.2,3251.1,5.61526]
[1738244365269,0.004609,3251.2,3251.1,0.61526]
[1738244365680,0.004609,3251.2,3251.1,5.61526]
[1738244366184,3.19005451,3251.9,3251.8,0.61513]
[1738244369186,0.004609,3252.2,3252.1,0.61507]
[1738244370875,0.004609,3252.2,3252.0,3.2078]
[1738244371181,0.004609,3252.2,3252.1,0.61507]
[1738244374382,0.004609,3252.2,3252.0,3.2078]
[1738244374581,0.61507,3252.1,3252.0,3.2078]
[1738244375494,3.1067,3252.1,3251.5,3.212409]
[1738244375787,0.61517,3251.6,3251.5,3.827599]
[1738244375990,0.61517,3251.6,3251.5,3.212409]
[1738244376583,3.19005451,3251.7,3250.8,0.61531]
[1738244376786,3.19005451,3250.9,3250.7,0.61533]
[1738244376985,0.61534,3250.7,3250.6,3.2078]
[1738244377387,0.61534,3250.7,3250.6,3.82316]
[1738244377582,3.19005451,3250.9,3250.6,3.2078]
[1738244377887,0.61533,3250.8,3250.7,0.61533]
[1738244378478,0.61533,3250.8,3250.6,3.2078]
[1738244378479,0.61534,3250.7,3250.6,3.82315]
[1738244378896,0.61541,3250.4,3250.3,0.61541]
[1738244379088,0.61541,3250.3,3250.2,3.2078]
[1738244379283,3.19005451,3250.4,3250.1,0.61545]
[1738244379284,0.61545,3250.2,3250.1,0.61545]
[1738244379588,1.53832,3250.8,3249.9,1.5389]
[1738244379788,0.004609,3250.5,3250.4,0.6154]
[1738244380593,0.6154,3250.4,3250.3,3.82321]
[1738244380787,0.6154,3250.4,3250.3,3.2078]
[1738244380988,0.004609,3250.5,3250.3,3.2078]
[1738244381193,0.004609,3250.5,3250.4,0.6154]
[1738244382283,3.80520451,3251.7,3251.5,0.61517]
[1738244382484,3.19005451,3251.7,3251.6,0.61517]
[1738244382885,3.19005451,3251.7,3251.1,3.2078]
[1738244383193,3.19005451,3251.7,3251.6,0.61517]
[1738244383392,0.004609,3252.0,3251.6,3.82297]
[1738244383691,0.004609,3252.0,3251.9,0.61511]
[1738244392599,0.004609,3252.0,3251.3,0.004609]
[1738244392894,3.19005451,3251.5,3251.4,0.61521]
[1738244393105,3.19005451,3251.9,3251.8,0.61512]
[1738244393291,3.19005451,3251.9,3251.8,3.82292]
[1738244394198,0.004609,3252.0,3251.9,0.61511]
[1738244395798,0.004609,3252.0,3251.8,3.2078]
[1738244396001,3.80516451,3251.9,3251.8,3.2078]
[1738244396200,0.61515,3251.7,3251.6,0.61516]
[1738244396400,4.63345451,3251.9,3251.8,0.61513]
[1738244397189,5.24856451,3251.9,3251.8,0.61513]
[1738244398103,0.61516,3251.7,3251.5,0.61519]
[1738244398295,0.61516,3251.7,3251.4,3.2078]
[1738244398296,4.63345451,3251.9,3251.4,3.2078]
[1738244398597,3.80524451,3251.5,3251.4,3.82299]
[1738244398800,3.80524451,3251.5,3251.4,3.2078]
[1738244399003,0.61521,3251.4,3251.3,0.004609]
[1738244399893,0.61521,3251.4,3251.3,0.619839]
[1738244400397,0.61521,3251.4,3251.3,0.004609]
[1738244400599,1.53805,3251.4,3250.6,3.2078]
[1738244400903,3.19005451,3250.7,3250.2,3.2078]
[1738244401402,3.19005451,3250.7,3250.6,0.61536]
[1738244401602,3.19005451,3250.7,3250.6,3.82316]
[1738244402695,3.80539451,3250.7,3250.6,3.2078]
[1738244402905,3.80539451,3250.7,3250.6,3.82316]
[1738244403100,3.80539451,3250.7,3250.6,3.2078]
[1738244403297,3.19005451,3250.7,3250.6,3.82316]
[1738244403601,0.61537,3250.6,3250.5,0.61536]
[1738244404196,3.19005451,3250.7,3250.2,3.82322]
[1738244404197,0.61541,3250.3,3250.2,3.82322]
[1738244404417,3.80546451,3250.3,3250.2,3.2078]
[1738244405397,0.61548,3250.0,3249.7,3.2078]
[1738244405599,0.61548,3250.0,3249.9,0.61549]
[1738244405897,0.61546,3250.1,3250.0,0.61547]
[1738244406302,0.61544,3250.2,3250.1,0.61545]
[1738244406909,0.61542,3250.3,3249.7,3.2078]
[1738244407106,3.19005451,3250.1,3249.7,3.2078]
[1738244407609,3.19005451,3250.1,3250.0,0.61547]
[1738244408303,3.80551451,3250.1,3250.0,0.61547]
[1738244408504,3.19005451,3250.1,3249.7,3.2078]
[1738244408698,1.5827,3250.0,3249.7,3.2078]
[1738244408904,3.19005451,3250.1,3249.7,3.2078]
[1738244409110,3.19005451,3250.1,3250.0,0.61547]
[1738244409609,3.2078,3250.5,3250.4,0.6154]
[1738244409610,3.19005451,3250.5,3250.4,0.6154]
[1738244412805,3.80543451,3250.5,3250.4,0.6154]
[1738244413513,0.6154,3250.4,3250.3,3.8232]
[1738244414009,3.80543451,3250.5,3250.4,0.6154]
[1738244414910,3.19005451,3250.5,3250.4,0.6154]
[1738244415100,3.80543451,3250.5,3250.4,0.6154]
[1738244416910,3.19005451,3250.5,3250.4,0.6154]
[1738244417714,3.19005451,3250.5,3249.9,3.2078]
[1738244417911,0.61541,3250.4,3250.3,0.61541]
[1738244418114,0.61547,3250.0,3249.9,3.82327]
[1738244418414,3.19005451,3250.0,3249.9,3.82329]
[1738244418806,3.19005451,3250.4,3249.9,3.82329]
[1738244419006,3.19005451,3250.4,3250.3,0.61541]
[1738244419613,3.19005451,3250.4,3250.3,3.82321]
[1738244424006,3.19005451,3250.4,3250.3,0.61541]
[1738244424406,3.80545451,3250.4,3250.3,0.61541]
[1738244426012,0.61545,3250.2,3250.1,0.61543]
[1738244426215,0.61547,3250.0,3249.9,3.82329]
[1738244426409,3.80552451,3250.0,3249.9,3.82329]
[1738244426610,3.25847071,3250.0,3249.9,3.82329]
[1738244427621,2.64300071,3250.0,3249.9,3.82329]
[1738244431621,3.25847071,3250.0,3249.9,3.82329]
[1738244431917,2.64300071,3250.0,3249.9,3.82329]
[1738244438329,1.53846,3250.5,3249.9,3.82329]
[1738244438330,2.64300071,3250.3,3249.9,3.2078]
[1738244438527,2.64300071,3250.3,3250.2,0.61543]
[1738244438723,2.64300071,3250.6,3250.0,1.5849]
[1738244439028,3.25838071,3250.6,3250.5,0.61538]
[1738244439726,3.25838071,3250.6,3250.2,1.53857]
[1738244439925,2.64300071,3250.3,3250.0,1.5849]
[1738244440124,2.64300071,3250.6,3250.0,1.5849]
[1738244440320,2.64300071,3250.6,3250.5,0.61538]
[1738244440923,3.25836071,3250.6,3250.5,0.61538]
[1738244441325,2.64300071,3250.6,3250.5,0.61538]
[1738244441725,3.25836071,3250.6,3250.5,0.61538]
[1738244442626,2.64300071,3250.6,3250.5,0.61538]
[1738244445028,2.65160971,3250.9,3250.8,0.61532]
[1738244445226,0.008609,3250.9,3250.8,3.82312]
[1738244446129,9e-06,3250.9,3250.8,8.82312]
[1738244446537,9e-06,3250.9,3250.8,3.82312]
[1738244447033,2.64300971,3250.9,3250.8,3.82312]
[1738244447233,3.25830971,3250.9,3250.8,3.82312]
[1738244449339,2.64300971,3250.9,3250.8,3.82312]
[1738244449531,9e-06,3250.9,3250.8,3.82312]
[1738244450533,0.615309,3250.9,3250.8,3.82312]
[1738244450835,9e-06,3250.9,3250.8,3.82312]
[1738244462541,0.615309,3250.9,3250.8,3.82312]
[1738244462841,0.615309,3250.9,3250.5,0.619979]
[1738244462842,2.64300971,3250.9,3250.5,0.619979]
[1738244463047,0.61536,3250.6,3250.5,0.619979]
[1738244463744,0.61536,3250.6,3250.5,0.004609]
[1738244463942,3.25836071,3250.6,3250.5,0.004609]
[1738244464845,3.25836071,3250.6,3250.5,0.619989]
[1738244465546,6.46616071,3250.6,3250.5,0.004609]
[1738244466050,5.85080071,3250.6,3249.8,3.2078]
[1738244466250,0.61544,3250.2,3250.1,0.61544]
[1738244467944,2.64300071,3250.3,3249.8,3.2078]
[1738244468248,2.64300071,3250.3,3250.1,0.61544]
[1738244468446,3.25843071,3250.3,3250.1,0.61544]
[1738244468643,3.25843071,3250.3,3249.8,3.2078]
[1738244468850,3.25843071,3250.3,3250.0,0.61546]
[1738244469146,0.61545,3250.2,3250.0,0.61546]
[1738244469343,4.6616,3250.2,3249.9,0.61548]
[1738244469548,4.6616,3250.2,3249.4,4.74675]
[1738244469739,0.6155,3249.9,3249.8,0.61551]
[1738244469943,2.64300071,3250.0,3249.4,3.2078]
[1738244470142,2.64300071,3249.7,3249.4,3.2078]
[1738244470343,0.61557,3249.5,3249.4,0.61558]
[1738244470545,0.61557,3249.5,3249.4,0.61559]
[1738244470737,2.64300071,3249.7,3249.4,0.61559]
[1738244470942,0.61559,3249.4,3249.2,0.6156]
[1738244471142,0.61565,3249.1,3248.9,3.82347]
[1738244471343,1.5934,3249.3,3248.9,3.2078]